[Event "Titled Tuesday Blitz April 19 Early 2022"]
[White "Dubov, Daniil"]
[Black "Abdrlauf, Elham"]
[WhiteFideId "24126055"]
[BlackFideId "1533533"]
[WhiteElo "2791"]
[BlackElo "2334"]
[Result "0-1"]
[Round "04"]
[TimeControl "180+1"]
[Date "2022.04.19"]
[WhiteClock "0:00:04"]
[BlackClock "0:00:07"]

1. d4 {[%clk 0:03:00]}  Nf6 {[%clk 0:02:59]} 2. Nf3 {[%clk 0:03:01]}  d5 {[%clk 0:03:00]} 3. c4 {[%clk 0:02:59]}  e6 {[%clk 0:03:00]} 4. g3 {[%clk 0:02:59]}  dxc4 {[%clk 0:03:01]} 5. Bg2 {[%clk 0:02:59]}  c5 {[%clk 0:02:58]} 6. O-O {[%clk 0:02:58]}  Nc6 {[%clk 0:02:58]} 7. Qa4 {[%clk 0:02:57]}  Bd7 {[%clk 0:02:59]} 8. Qxc4 {[%clk 0:02:56]}  b5 {[%clk 0:02:59]} 9. Qd3 {[%clk 0:02:56]}  c4 {[%clk 0:02:59]} 10. Qd1 {[%clk 0:02:55]}  Rc8 {[%clk 0:02:59]} 11. a3 {[%clk 0:02:54]}  Be7 {[%clk 0:02:59]} 12. Nc3 {[%clk 0:02:54]}  Na5 {[%clk 0:02:56]} 13. Ne5 {[%clk 0:02:50]}  O-O {[%clk 0:02:57]} 14. Bf4 {[%clk 0:02:46]}  Be8 {[%clk 0:02:53]} 15. Rb1 {[%clk 0:02:24]}  Nb3 {[%clk 0:02:42]} 16. e3 {[%clk 0:02:16]}  a5 {[%clk 0:02:38]} 17. h4 {[%clk 0:02:10]}  Nd5 {[%clk 0:02:09]} 18. Qe2 {[%clk 0:01:40]}  b4 {[%clk 0:01:47]} 19. axb4 {[%clk 0:01:39]}  axb4 {[%clk 0:01:48]} 20. Nxd5 {[%clk 0:01:37]}  exd5 {[%clk 0:01:49]} 21. Rfd1 {[%clk 0:01:26]}  Ba4 {[%clk 0:01:21]} 22. Bh3 {[%clk 0:01:06]}  Rc7 {[%clk 0:01:10]} 23. Bf5 {[%clk 0:01:05]}  Na5 {[%clk 0:00:57]} 24. Re1 {[%clk 0:00:59]}  Nc6 {[%clk 0:00:53]} 25. Ra1 {[%clk 0:00:54]}  Bb5 {[%clk 0:00:50]} 26. Qg4 {[%clk 0:00:40]}  Bf6 {[%clk 0:00:28]} 27. Nd7 {[%clk 0:00:25]}  Rxd7 {[%clk 0:00:28]} 28. Bxd7 {[%clk 0:00:25]}  Nxd4 {[%clk 0:00:29]} 29. Ra7 {[%clk 0:00:13]}  Bxd7 {[%clk 0:00:16]} 30. Rxd7 {[%clk 0:00:11]}  Nf3+ {[%clk 0:00:16]} 31. Kh1 {[%clk 0:00:11]}  Qc8 {[%clk 0:00:17]} 32. Rd1 {[%clk 0:00:09]}  h5 {[%clk 0:00:14]} 33. Qxf3 {[%clk 0:00:08]}  Qxd7 {[%clk 0:00:15]} 34. Rxd5 {[%clk 0:00:09]}  Qc6 {[%clk 0:00:13]} 35. e4 {[%clk 0:00:07]}  Bxb2 {[%clk 0:00:12]} 36. Rxh5 {[%clk 0:00:07]}  Re8 {[%clk 0:00:11]} 37. Rd5 {[%clk 0:00:07]}  Qe6 {[%clk 0:00:11]} 38. e5 {[%clk 0:00:06]}  c3 {[%clk 0:00:11]} 39. Rd6 {[%clk 0:00:06]}  Qc4 {[%clk 0:00:09]} 40. Rc6 {[%clk 0:00:07]}  Qd4 {[%clk 0:00:06]} 41. h5 {[%clk 0:00:07]}  b3 {[%clk 0:00:06]} 42. h6 {[%clk 0:00:07]}  c2 {[%clk 0:00:07]} 43. Qg4 {[%clk 0:00:04]}  Qd1+ {[%clk 0:00:07]} 0-1


[Site "https://www.chess.com"]

[Event "Titled Tuesday Blitz April 19 Early 2022"]
[White "Ianov, Viktor"]
[Black "Makarian, Rudik"]
[WhiteFideId "14102730"]
[BlackFideId "44105681"]
[WhiteElo "2161"]
[BlackElo "2388"]
[Result "1-0"]
[Round "04"]
[TimeControl "180+1"]
[Date "2022.04.19"]
[WhiteClock "0:01:20"]
[BlackClock "0:00:01"]

1. Nf3 {[%clk 0:03:00]}  Nf6 {[%clk 0:03:00]} 2. g3 {[%clk 0:02:59]}  b5 {[%clk 0:02:59]} 3. Bg2 {[%clk 0:02:58]}  Bb7 {[%clk 0:03:00]} 4. Na3 {[%clk 0:02:58]}  a6 {[%clk 0:02:56]} 5. c4 {[%clk 0:02:58]}  b4 {[%clk 0:02:57]} 6. Nc2 {[%clk 0:02:57]}  e6 {[%clk 0:02:57]} 7. b3 {[%clk 0:02:57]}  Be7 {[%clk 0:02:54]} 8. a3 {[%clk 0:02:58]}  a5 {[%clk 0:02:54]} 9. axb4 {[%clk 0:02:57]}  axb4 {[%clk 0:02:55]} 10. Rxa8 {[%clk 0:02:56]}  Bxa8 {[%clk 0:02:56]} 11. Bb2 {[%clk 0:02:56]}  O-O {[%clk 0:02:55]} 12. O-O {[%clk 0:02:55]}  c5 {[%clk 0:02:55]} 13. Qa1 {[%clk 0:02:55]}  Nc6 {[%clk 0:02:42]} 14. Rd1 {[%clk 0:02:54]}  d5 {[%clk 0:02:37]} 15. cxd5 {[%clk 0:02:51]}  exd5 {[%clk 0:02:29]} 16. d4 {[%clk 0:02:51]}  c4 {[%clk 0:02:06]} 17. bxc4 {[%clk 0:02:47]}  dxc4 {[%clk 0:02:06]} 18. d5 {[%clk 0:02:47]}  c3 {[%clk 0:02:06]} 19. dxc6 {[%clk 0:02:31]}  cxb2 {[%clk 0:02:05]} 20. Qb1 {[%clk 0:02:30]}  Qb6 {[%clk 0:01:36]} 21. Nfd4 {[%clk 0:02:25]}  b3 {[%clk 0:01:25]} 22. Ne3 {[%clk 0:02:23]}  Ba3 {[%clk 0:01:17]} 23. Nc4 {[%clk 0:02:20]}  Qb4 {[%clk 0:01:14]} 24. Nxa3 {[%clk 0:02:17]}  Qxa3 {[%clk 0:01:14]} 25. Rd2 {[%clk 0:02:15]}  Rd8 {[%clk 0:00:39]} 26. e3 {[%clk 0:02:12]}  Nd5 {[%clk 0:00:17]} 27. Qxb2 {[%clk 0:02:04]}  Qc5 {[%clk 0:00:11]} 28. Qxb3 {[%clk 0:02:00]}  Nc3 {[%clk 0:00:07]} 29. Rc2 {[%clk 0:01:51]}  Ne2+ {[%clk 0:00:03]} 30. Rxe2 {[%clk 0:01:46]}  Qc1+ {[%clk 0:00:03]} 31. Bf1 {[%clk 0:01:44]}  h5 {[%clk 0:00:04]} 32. h4 {[%clk 0:01:41]}  Rc8 {[%clk 0:00:04]} 33. Rc2 {[%clk 0:01:38]}  Qd1 {[%clk 0:00:04]} 34. Qd3 {[%clk 0:01:37]}  Qa1 {[%clk 0:00:04]} 35. Qc3 {[%clk 0:01:33]}  Qa4 {[%clk 0:00:04]} 36. Bg2 {[%clk 0:01:31]}  g6 {[%clk 0:00:04]} 37. Qc4 {[%clk 0:01:30]}  Qa1+ {[%clk 0:00:04]} 38. Kh2 {[%clk 0:01:30]}  Qa3 {[%clk 0:00:03]} 39. Bd5 {[%clk 0:01:29]}  Qe7 {[%clk 0:00:03]} 40. Kg2 {[%clk 0:01:28]}  Qf6 {[%clk 0:00:03]} 41. e4 {[%clk 0:01:27]}  Qe7 {[%clk 0:00:03]} 42. Nf3 {[%clk 0:01:27]}  Kg7 {[%clk 0:00:02]} 43. Ng5 {[%clk 0:01:27]}  f6 {[%clk 0:00:03]} 44. Nf3 {[%clk 0:01:26]}  Qd6 {[%clk 0:00:02]} 45. Nd4 {[%clk 0:01:25]}  Qe5 {[%clk 0:00:01]} 46. Ne6+ {[%clk 0:01:24]}  Kh7 {[%clk 0:00:02]} 47. Qc5 {[%clk 0:01:20]}  Qa1 {[%clk 0:00:01]} 48. Qe7+ {[%clk 0:01:20]} 1-0


[Site "https://www.chess.com"]

[Event "Titled Tuesday Blitz April 19 Early 2022"]
[White "Jaferian, Koosha"]
[Black "Oganian, Miran"]
[WhiteFideId "12507440"]
[BlackFideId "4122488"]
[WhiteElo "2030"]
[BlackElo "2357"]
[Result "0-1"]
[Round "04"]
[TimeControl "180+1"]
[Date "2022.04.19"]
[WhiteClock "0:00:01"]
[BlackClock "0:00:53"]

1. Nf3 {[%clk 0:03:00]}  d5 {[%clk 0:02:59]} 2. b3 {[%clk 0:03:01]}  Nf6 {[%clk 0:02:58]} 3. Bb2 {[%clk 0:03:01]}  c5 {[%clk 0:02:58]} 4. e3 {[%clk 0:03:01]}  Nc6 {[%clk 0:02:58]} 5. Be2 {[%clk 0:03:01]}  g6 {[%clk 0:02:59]} 6. d4 {[%clk 0:03:01]}  Bg7 {[%clk 0:02:56]} 7. dxc5 {[%clk 0:03:02]}  Qa5+ {[%clk 0:02:55]} 8. Nbd2 {[%clk 0:03:02]}  Qxc5 {[%clk 0:02:55]} 9. O-O {[%clk 0:02:58]}  O-O {[%clk 0:02:56]} 10. c4 {[%clk 0:02:58]}  dxc4 {[%clk 0:02:44]} 11. Nxc4 {[%clk 0:02:58]}  Rd8 {[%clk 0:02:42]} 12. Qc1 {[%clk 0:02:56]}  Bg4 {[%clk 0:02:37]} 13. Nce5 {[%clk 0:02:35]}  Qxc1 {[%clk 0:02:21]} 14. Raxc1 {[%clk 0:02:36]}  Nxe5 {[%clk 0:02:21]} 15. Bxe5 {[%clk 0:02:35]}  Rac8 {[%clk 0:02:18]} 16. Rfd1 {[%clk 0:02:13]}  Rxd1+ {[%clk 0:02:16]} 17. Rxd1 {[%clk 0:02:14]}  Ne4 {[%clk 0:02:15]} 18. Bxg7 {[%clk 0:02:14]}  Kxg7 {[%clk 0:02:14]} 19. Bc4 {[%clk 0:01:33]}  Nd6 {[%clk 0:01:46]} 20. Rd4 {[%clk 0:01:19]}  Nxc4 {[%clk 0:01:34]} 21. bxc4 {[%clk 0:00:53]}  Be6 {[%clk 0:01:33]} 22. Nd2 {[%clk 0:00:48]}  b5 {[%clk 0:01:32]} 23. h4 {[%clk 0:00:15]}  bxc4 {[%clk 0:01:32]} 24. Ne4 {[%clk 0:00:09]}  c3 {[%clk 0:01:30]} 25. Rd1 {[%clk 0:00:10]}  c2 {[%clk 0:01:30]} 26. Rc1 {[%clk 0:00:10]}  Bxa2 {[%clk 0:01:30]} 27. Kf1 {[%clk 0:00:09]}  a5 {[%clk 0:01:30]} 28. Ke2 {[%clk 0:00:10]}  a4 {[%clk 0:01:30]} 29. Kd2 {[%clk 0:00:10]}  Bb1 {[%clk 0:01:31]} 30. Nc3 {[%clk 0:00:10]}  Rd8+ {[%clk 0:00:56]} 31. Ke2 {[%clk 0:00:11]}  a3 {[%clk 0:00:56]} 32. Nxb1 {[%clk 0:00:10]}  Rd1 {[%clk 0:00:56]} 33. Rxc2 {[%clk 0:00:04]}  Rxb1 {[%clk 0:00:56]} 34. Kd2 {[%clk 0:00:02]}  Ra1 {[%clk 0:00:57]} 35. Kc3 {[%clk 0:00:02]}  a2 {[%clk 0:00:53]} 36. Kb3 {[%clk 0:00:02]}  Rg1 {[%clk 0:00:53]} 37. Kxa2 {[%clk 0:00:01]}  Rxg2 {[%clk 0:00:53]} 38. Kb3 {[%clk 0:00:01]}  Rh2 {[%clk 0:00:53]} 0-1


[Site "https://www.chess.com"]

[Event "Titled Tuesday Blitz April 19 Early 2022"]
[White "Jobava, Baadur"]
[Black "Brodowski, Piotr"]
[WhiteFideId "13601520"]
[BlackFideId "1124480"]
[WhiteElo "2617"]
[BlackElo "2422"]
[Result "1/2-1/2"]
[Round "04"]
[TimeControl "180+1"]
[Date "2022.04.19"]
[WhiteClock "0:01:00"]
[BlackClock "0:00:07"]

1. b3 {[%clk 0:02:31]}  Nf6 {[%clk 0:02:55]} 2. Bb2 {[%clk 0:02:30]}  g6 {[%clk 0:02:55]} 3. c4 {[%clk 0:02:30]}  Bg7 {[%clk 0:02:55]} 4. g3 {[%clk 0:02:30]}  O-O {[%clk 0:02:55]} 5. Bg2 {[%clk 0:02:31]}  c5 {[%clk 0:02:54]} 6. Nf3 {[%clk 0:02:31]}  Nc6 {[%clk 0:02:54]} 7. O-O {[%clk 0:02:31]}  d6 {[%clk 0:02:53]} 8. d4 {[%clk 0:02:30]}  cxd4 {[%clk 0:02:52]} 9. Nxd4 {[%clk 0:02:31]}  Bd7 {[%clk 0:02:52]} 10. Nc3 {[%clk 0:02:31]}  Rc8 {[%clk 0:02:52]} 11. Rc1 {[%clk 0:02:31]}  a6 {[%clk 0:02:40]} 12. e3 {[%clk 0:02:30]}  h5 {[%clk 0:02:34]} 13. h3 {[%clk 0:02:29]}  Kh7 {[%clk 0:02:15]} 14. Re1 {[%clk 0:02:29]}  Qb6 {[%clk 0:01:38]} 15. Kh2 {[%clk 0:02:29]}  Nxd4 {[%clk 0:01:29]} 16. exd4 {[%clk 0:02:29]}  e6 {[%clk 0:01:29]} 17. Rc2 {[%clk 0:02:19]}  Rfe8 {[%clk 0:01:27]} 18. Bc1 {[%clk 0:02:18]}  Qc7 {[%clk 0:01:22]} 19. Bg5 {[%clk 0:02:17]}  Ng8 {[%clk 0:01:21]} 20. Rc1 {[%clk 0:02:11]}  Qa5 {[%clk 0:01:18]} 21. Qd2 {[%clk 0:02:06]}  b5 {[%clk 0:01:03]} 22. Ne4 {[%clk 0:01:39]}  Qxd2 {[%clk 0:01:00]} 23. Bxd2 {[%clk 0:01:39]}  Bf8 {[%clk 0:00:56]} 24. Bf4 {[%clk 0:01:37]}  bxc4 {[%clk 0:00:44]} 25. bxc4 {[%clk 0:01:38]}  e5 {[%clk 0:00:35]} 26. dxe5 {[%clk 0:01:37]}  dxe5 {[%clk 0:00:35]} 27. Ng5+ {[%clk 0:01:37]}  Kg7 {[%clk 0:00:26]} 28. Rxe5 {[%clk 0:01:34]}  Rxe5 {[%clk 0:00:20]} 29. Bxe5+ {[%clk 0:01:35]}  f6 {[%clk 0:00:19]} 30. Ba1 {[%clk 0:01:33]}  Ba3 {[%clk 0:00:13]} 31. Rd1 {[%clk 0:01:34]}  Bf5 {[%clk 0:00:11]} 32. Bd5 {[%clk 0:01:34]}  Ne7 {[%clk 0:00:10]} 33. Ne6+ {[%clk 0:01:32]}  Bxe6 {[%clk 0:00:07]} 34. Bxe6 {[%clk 0:01:33]}  Rc7 {[%clk 0:00:08]} 35. Kg2 {[%clk 0:01:30]}  Nc6 {[%clk 0:00:07]} 36. Rd7+ {[%clk 0:01:28]}  Rxd7 {[%clk 0:00:07]} 37. Bxd7 {[%clk 0:01:29]}  Ne5 {[%clk 0:00:08]} 38. Be6 {[%clk 0:01:30]}  Nd3 {[%clk 0:00:08]} 39. Bc8 {[%clk 0:01:26]}  a5 {[%clk 0:00:07]} 40. Bd4 {[%clk 0:01:26]}  Nc1 {[%clk 0:00:05]} 41. c5 {[%clk 0:01:25]}  Nxa2 {[%clk 0:00:06]} 42. c6 {[%clk 0:01:26]}  Bd6 {[%clk 0:00:06]} 43. Bb6 {[%clk 0:01:25]}  Nb4 {[%clk 0:00:06]} 44. Bb7 {[%clk 0:01:24]}  a4 {[%clk 0:00:05]} 45. c7 {[%clk 0:01:24]}  Bxc7 {[%clk 0:00:05]} 46. Bxc7 {[%clk 0:01:25]}  a3 {[%clk 0:00:06]} 47. Bb6 {[%clk 0:01:17]}  a2 {[%clk 0:00:07]} 48. Bd4 {[%clk 0:01:18]}  Nc2 {[%clk 0:00:07]} 49. Bc3 {[%clk 0:01:18]}  a1=Q {[%clk 0:00:08]} 50. Bxa1 {[%clk 0:01:18]}  Nxa1 {[%clk 0:00:09]} 51. Kf3 {[%clk 0:01:19]}  Nb3 {[%clk 0:00:09]} 52. Ke3 {[%clk 0:01:18]}  Nc5 {[%clk 0:00:09]} 53. Bd5 {[%clk 0:01:18]}  Kf8 {[%clk 0:00:10]} 54. Kd4 {[%clk 0:01:19]}  Nd7 {[%clk 0:00:10]} 55. Be6 {[%clk 0:01:19]}  Ne5 {[%clk 0:00:09]} 56. f4 {[%clk 0:01:19]}  Nc6+ {[%clk 0:00:08]} 57. Kd5 {[%clk 0:01:20]}  Nb4+ {[%clk 0:00:07]} 58. Kd6 {[%clk 0:01:20]}  Nd3 {[%clk 0:00:06]} 59. Bd5 {[%clk 0:01:14]}  Kg7 {[%clk 0:00:06]} 60. Be4 {[%clk 0:01:12]}  Nf2 {[%clk 0:00:06]} 61. Bg2 {[%clk 0:01:13]}  Nd3 {[%clk 0:00:06]} 62. Kd5 {[%clk 0:01:13]}  Nb4+ {[%clk 0:00:05]} 63. Kc5 {[%clk 0:01:13]}  Nd3+ {[%clk 0:00:05]} 64. Kc4 {[%clk 0:01:11]}  Nb2+ {[%clk 0:00:05]} 65. Kd4 {[%clk 0:01:08]}  Na4 {[%clk 0:00:04]} 66. Bc6 {[%clk 0:01:05]}  Nb6 {[%clk 0:00:05]} 67. Kc5 {[%clk 0:01:06]}  Nc8 {[%clk 0:00:05]} 68. Bd7 {[%clk 0:01:05]}  Ne7 {[%clk 0:00:05]} 69. Kd6 {[%clk 0:01:06]}  Ng8 {[%clk 0:00:05]} 70. Be6 {[%clk 0:01:04]}  Nh6 {[%clk 0:00:05]} 71. h4 {[%clk 0:01:03]}  Nf7+ {[%clk 0:00:03]} 72. Ke7 {[%clk 0:01:02]}  Nh6 {[%clk 0:00:02]} 73. Ke8 {[%clk 0:01:02]}  f5 {[%clk 0:00:03]} 74. Ke7 {[%clk 0:01:02]}  Ng4 {[%clk 0:00:04]} 75. Kd6 {[%clk 0:01:00]}  Ne3 {[%clk 0:00:04]} 76. Ke5 {[%clk 0:00:57]}  Nf1 {[%clk 0:00:04]} 77. Bxf5 {[%clk 0:00:57]}  gxf5 {[%clk 0:00:05]} 78. Kxf5 {[%clk 0:00:58]}  Nxg3+ {[%clk 0:00:04]} 79. Kg5 {[%clk 0:00:59]}  Ne2 {[%clk 0:00:05]} 80. Kxh5 {[%clk 0:00:58]}  Nxf4+ {[%clk 0:00:04]} 81. Kg4 {[%clk 0:00:59]}  Ng6 {[%clk 0:00:05]} 82. h5 {[%clk 0:01:00]}  Ne5+ {[%clk 0:00:05]} 83. Kg3 {[%clk 0:00:59]}  Nf7 {[%clk 0:00:06]} 84. h6+ {[%clk 0:01:00]}  Kxh6 {[%clk 0:00:07]} 1/2-1/2


[Site "https://www.chess.com"]

[Event "Titled Tuesday Blitz April 19 Early 2022"]
[White "Koelle, Tobias"]
[Black "Paravyan, David"]
[WhiteFideId "16207378"]
[BlackFideId "4194985"]
[WhiteElo "2541"]
[BlackElo "2569"]
[Result "1/2-1/2"]
[Round "04"]
[TimeControl "180+1"]
[Date "2022.04.19"]
[WhiteClock "0:00:53"]
[BlackClock "0:00:08"]

1. Nf3 {[%clk 0:03:00]}  Nf6 {[%clk 0:02:59]} 2. c4 {[%clk 0:02:59]}  c5 {[%clk 0:02:58]} 3. Nc3 {[%clk 0:02:58]}  d5 {[%clk 0:02:58]} 4. cxd5 {[%clk 0:02:59]}  Nxd5 {[%clk 0:02:59]} 5. g3 {[%clk 0:02:59]}  Nc6 {[%clk 0:02:54]} 6. Bg2 {[%clk 0:02:58]}  Nxc3 {[%clk 0:02:54]} 7. bxc3 {[%clk 0:02:55]}  e5 {[%clk 0:02:54]} 8. d3 {[%clk 0:02:55]}  Be7 {[%clk 0:02:54]} 9. Rb1 {[%clk 0:02:55]}  O-O {[%clk 0:02:53]} 10. O-O {[%clk 0:02:54]}  Qc7 {[%clk 0:02:46]} 11. c4 {[%clk 0:02:53]}  Rb8 {[%clk 0:02:36]} 12. Nd2 {[%clk 0:02:43]}  f5 {[%clk 0:02:08]} 13. Bb2 {[%clk 0:02:31]}  Bf6 {[%clk 0:01:59]} 14. Re1 {[%clk 0:02:28]}  b6 {[%clk 0:01:54]} 15. Nf1 {[%clk 0:02:28]}  f4 {[%clk 0:01:43]} 16. Nd2 {[%clk 0:02:26]}  Bb7 {[%clk 0:01:41]} 17. Ne4 {[%clk 0:02:21]}  Nd4 {[%clk 0:01:36]} 18. e3 {[%clk 0:02:17]}  fxe3 {[%clk 0:01:05]} 19. fxe3 {[%clk 0:02:18]}  Ne6 {[%clk 0:00:33]} 20. Qg4 {[%clk 0:02:13]}  Qe7 {[%clk 0:00:25]} 21. Rf1 {[%clk 0:02:11]}  Kh8 {[%clk 0:00:21]} 22. Rf2 {[%clk 0:02:04]}  Ng5 {[%clk 0:00:14]} 23. Rbf1 {[%clk 0:02:00]}  Nxe4 {[%clk 0:00:12]} 24. Bxe4 {[%clk 0:02:01]}  Bxe4 {[%clk 0:00:11]} 25. Qxe4 {[%clk 0:02:02]}  Kg8 {[%clk 0:00:10]} 26. Rf5 {[%clk 0:02:00]}  Rbe8 {[%clk 0:00:06]} 27. g4 {[%clk 0:01:59]}  g6 {[%clk 0:00:06]} 28. R5f3 {[%clk 0:01:56]}  Bg7 {[%clk 0:00:07]} 29. Qd5+ {[%clk 0:01:55]}  Qe6 {[%clk 0:00:07]} 30. Rxf8+ {[%clk 0:01:43]}  Bxf8 {[%clk 0:00:07]} 31. Qe4 {[%clk 0:01:43]}  Bg7 {[%clk 0:00:07]} 32. h3 {[%clk 0:01:37]}  Rd8 {[%clk 0:00:07]} 33. Kg2 {[%clk 0:01:28]}  Qd7 {[%clk 0:00:08]} 34. Rd1 {[%clk 0:01:22]}  Rf8 {[%clk 0:00:07]} 35. Rf1 {[%clk 0:01:21]}  Rd8 {[%clk 0:00:07]} 36. Rd1 {[%clk 0:01:21]}  Rf8 {[%clk 0:00:07]} 37. Bc3 {[%clk 0:01:14]}  Qf7 {[%clk 0:00:07]} 38. Qd5 {[%clk 0:01:14]}  Qxd5+ {[%clk 0:00:02]} 39. cxd5 {[%clk 0:01:15]}  b5 {[%clk 0:00:02]} 40. a3 {[%clk 0:01:12]}  Rc8 {[%clk 0:00:03]} 41. Rb1 {[%clk 0:01:12]}  a6 {[%clk 0:00:02]} 42. Ba5 {[%clk 0:01:05]}  Bf8 {[%clk 0:00:02]} 43. Kf3 {[%clk 0:01:05]}  c4 {[%clk 0:00:02]} 44. dxc4 {[%clk 0:01:02]}  Rxc4 {[%clk 0:00:03]} 45. Rd1 {[%clk 0:01:00]}  e4+ {[%clk 0:00:03]} 46. Ke2 {[%clk 0:00:54]}  Bd6 {[%clk 0:00:04]} 47. Bb4 {[%clk 0:00:52]}  Bxb4 {[%clk 0:00:04]} 48. axb4 {[%clk 0:00:53]}  Kf7 {[%clk 0:00:05]} 49. Ra1 {[%clk 0:00:52]}  Rxb4 {[%clk 0:00:05]} 50. Rxa6 {[%clk 0:00:53]}  Rb2+ {[%clk 0:00:05]} 51. Ke1 {[%clk 0:00:53]}  Rb3 {[%clk 0:00:06]} 52. Kd2 {[%clk 0:00:51]}  Rd3+ {[%clk 0:00:06]} 53. Ke2 {[%clk 0:00:52]}  Rxd5 {[%clk 0:00:06]} 54. Ra7+ {[%clk 0:00:52]}  Kf6 {[%clk 0:00:06]} 55. Rxh7 {[%clk 0:00:52]}  Rc5 {[%clk 0:00:07]} 56. Kd2 {[%clk 0:00:51]}  Rd5+ {[%clk 0:00:07]} 57. Ke2 {[%clk 0:00:51]}  Rc5 {[%clk 0:00:08]} 58. Kd2 {[%clk 0:00:52]}  Rd5+ {[%clk 0:00:08]} 59. Ke2 {[%clk 0:00:53]} 1/2-1/2


[Site "https://www.chess.com"]

[Event "Titled Tuesday Blitz April 19 Early 2022"]
[White "Krishna, C R G"]
[Black "Alekseenko, Kirill"]
[WhiteFideId "5018625"]
[BlackFideId "4135539"]
[WhiteElo "2332"]
[BlackElo "2682"]
[Result "0-1"]
[Round "04"]
[TimeControl "180+1"]
[Date "2022.04.19"]
[WhiteClock "0:00:15"]
[BlackClock "0:00:13"]

1. d4 {[%clk 0:03:00]}  d5 {[%clk 0:03:00]} 2. c4 {[%clk 0:02:59]}  dxc4 {[%clk 0:03:01]} 3. e3 {[%clk 0:02:58]}  e5 {[%clk 0:03:01]} 4. Bxc4 {[%clk 0:02:58]}  Nc6 {[%clk 0:03:02]} 5. d5 {[%clk 0:02:53]}  Nce7 {[%clk 0:03:00]} 6. Nc3 {[%clk 0:02:49]}  a6 {[%clk 0:03:00]} 7. a4 {[%clk 0:02:47]}  Ng6 {[%clk 0:03:01]} 8. Nf3 {[%clk 0:02:44]}  Bd6 {[%clk 0:03:01]} 9. O-O {[%clk 0:02:44]}  Nf6 {[%clk 0:02:57]} 10. Qe2 {[%clk 0:02:36]}  O-O {[%clk 0:02:56]} 11. Nd2 {[%clk 0:02:34]}  Bg4 {[%clk 0:02:52]} 12. f3 {[%clk 0:02:33]}  Bf5 {[%clk 0:02:47]} 13. Nde4 {[%clk 0:02:32]}  Nxe4 {[%clk 0:02:43]} 14. fxe4 {[%clk 0:02:29]}  Bd7 {[%clk 0:02:42]} 15. Bd2 {[%clk 0:02:29]}  Qg5 {[%clk 0:02:34]} 16. Kh1 {[%clk 0:02:29]}  h5 {[%clk 0:02:27]} 17. Bd3 {[%clk 0:02:17]}  h4 {[%clk 0:02:25]} 18. Rf2 {[%clk 0:02:02]}  Bg4 {[%clk 0:02:21]} 19. Qf1 {[%clk 0:02:02]}  Ne7 {[%clk 0:02:15]} 20. Rc1 {[%clk 0:01:39]}  f6 {[%clk 0:02:03]} 21. Ne2 {[%clk 0:01:32]}  Bd7 {[%clk 0:01:59]} 22. Ng1 {[%clk 0:01:31]}  Bxa4 {[%clk 0:01:56]} 23. Nf3 {[%clk 0:01:30]}  Qh6 {[%clk 0:01:53]} 24. Qe1 {[%clk 0:01:23]}  Bd7 {[%clk 0:01:51]} 25. Rf1 {[%clk 0:01:22]}  h3 {[%clk 0:01:50]} 26. g3 {[%clk 0:01:22]}  c5 {[%clk 0:01:39]} 27. Nh4 {[%clk 0:01:06]}  b5 {[%clk 0:01:32]} 28. Nf5 {[%clk 0:01:05]}  Nxf5 {[%clk 0:01:27]} 29. exf5 {[%clk 0:01:06]}  c4 {[%clk 0:01:26]} 30. Be4 {[%clk 0:01:06]}  a5 {[%clk 0:01:08]} 31. g4 {[%clk 0:01:02]}  a4 {[%clk 0:01:06]} 32. Rf3 {[%clk 0:01:02]}  a3 {[%clk 0:01:05]} 33. bxa3 {[%clk 0:01:01]}  Rxa3 {[%clk 0:01:04]} 34. Qf1 {[%clk 0:00:43]}  Qg5 {[%clk 0:00:56]} 35. Qg1 {[%clk 0:00:43]}  Ra2 {[%clk 0:00:45]} 36. Rc2 {[%clk 0:00:43]}  Rxc2 {[%clk 0:00:42]} 37. Bxc2 {[%clk 0:00:44]}  b4 {[%clk 0:00:39]} 38. Rxh3 {[%clk 0:00:43]}  c3 {[%clk 0:00:26]} 39. Rh5 {[%clk 0:00:31]}  cxd2 {[%clk 0:00:24]} 40. Rxg5 {[%clk 0:00:31]}  fxg5 {[%clk 0:00:24]} 41. Qd1 {[%clk 0:00:31]}  Rb8 {[%clk 0:00:22]} 42. Bb3 {[%clk 0:00:29]}  Rc8 {[%clk 0:00:22]} 43. Qxd2 {[%clk 0:00:28]}  Rc3 {[%clk 0:00:23]} 44. Qa2 {[%clk 0:00:28]}  Kf7 {[%clk 0:00:20]} 45. Qa7 {[%clk 0:00:25]}  Ke7 {[%clk 0:00:15]} 46. Ba4 {[%clk 0:00:18]}  Rc7 {[%clk 0:00:16]} 47. Qa6 {[%clk 0:00:18]}  Rc1+ {[%clk 0:00:15]} 48. Kg2 {[%clk 0:00:18]}  Ra1 {[%clk 0:00:16]} 49. f6+ {[%clk 0:00:15]}  gxf6 {[%clk 0:00:16]} 50. Qd3 {[%clk 0:00:14]}  Rxa4 {[%clk 0:00:15]} 51. Qh7+ {[%clk 0:00:14]}  Kd8 {[%clk 0:00:15]} 52. Qh8+ {[%clk 0:00:15]}  Kc7 {[%clk 0:00:15]} 53. Qxf6 {[%clk 0:00:16]}  b3 {[%clk 0:00:15]} 54. Qg6 {[%clk 0:00:16]}  Rxg4+ {[%clk 0:00:14]} 55. Kf3 {[%clk 0:00:16]}  Rb4 {[%clk 0:00:12]} 56. Qd3 {[%clk 0:00:15]}  e4+ {[%clk 0:00:13]} 0-1


[Site "https://www.chess.com"]

[Event "Titled Tuesday Blitz April 19 Early 2022"]
[White "Lysyj, Igor"]
[Black "Zhigalko, Sergei"]
[WhiteFideId "4150120"]
[BlackFideId "13502956"]
[WhiteElo "2611"]
[BlackElo "2662"]
[Result "0-1"]
[Round "04"]
[TimeControl "180+1"]
[Date "2022.04.19"]
[WhiteClock "0:01:31"]
[BlackClock "0:00:07"]

1. d4 {[%clk 0:02:59]}  Nf6 {[%clk 0:02:59]} 2. c4 {[%clk 0:02:59]}  e6 {[%clk 0:02:59]} 3. Nf3 {[%clk 0:02:59]}  b6 {[%clk 0:02:59]} 4. g3 {[%clk 0:02:59]}  Ba6 {[%clk 0:02:58]} 5. Qc2 {[%clk 0:03:00]}  Bb4+ {[%clk 0:02:56]} 6. Bd2 {[%clk 0:02:59]}  Be7 {[%clk 0:02:55]} 7. e4 {[%clk 0:02:58]}  d5 {[%clk 0:02:55]} 8. cxd5 {[%clk 0:02:55]}  Bxf1 {[%clk 0:02:56]} 9. Kxf1 {[%clk 0:02:55]}  exd5 {[%clk 0:02:57]} 10. e5 {[%clk 0:02:55]}  Ne4 {[%clk 0:02:57]} 11. Kg2 {[%clk 0:02:50]}  Qd7 {[%clk 0:02:56]} 12. h4 {[%clk 0:02:49]}  c5 {[%clk 0:02:45]} 13. Nc3 {[%clk 0:02:42]}  Nxc3 {[%clk 0:02:37]} 14. Bxc3 {[%clk 0:02:36]}  Nc6 {[%clk 0:02:35]} 15. Rad1 {[%clk 0:02:34]}  c4 {[%clk 0:02:23]} 16. Ng5 {[%clk 0:02:28]}  Bxg5 {[%clk 0:01:33]} 17. hxg5 {[%clk 0:02:27]}  g6 {[%clk 0:01:34]} 18. b3 {[%clk 0:02:08]}  Nd8 {[%clk 0:01:06]} 19. bxc4 {[%clk 0:02:05]}  Rc8 {[%clk 0:01:06]} 20. c5 {[%clk 0:02:03]}  bxc5 {[%clk 0:00:58]} 21. dxc5 {[%clk 0:01:58]}  Rxc5 {[%clk 0:00:48]} 22. Qd2 {[%clk 0:01:54]}  Ne6 {[%clk 0:00:40]} 23. Bb4 {[%clk 0:01:53]}  Rc4 {[%clk 0:00:37]} 24. Bd6 {[%clk 0:01:52]}  d4 {[%clk 0:00:13]} 25. Rc1 {[%clk 0:01:34]}  Qc6+ {[%clk 0:00:13]} 26. Kh2 {[%clk 0:01:34]}  h6 {[%clk 0:00:07]} 27. gxh6 {[%clk 0:01:31]}  g5 {[%clk 0:00:07]} 0-1


[Site "https://www.chess.com"]